bitfinex/quotes_SOLUSD_20250917
["timestamp","ask_amount","ask_price","bid_price","bid_amount"]
[1758091261788,4.89692907,236.02,236.01,33.71]
[1758091262293,6.93452029,236.02,236.01,33.71]
[1758091262671,6.27452029,236.02,236.01,33.71]
[1758091263082,131.7,236.05,236.01,33.71]
[1758091263386,135.93644581,236.05,236.02,0.7]
[1758091263978,135.93644581,236.05,236.01,35.74759122]
[1758091264287,135.93644581,236.05,236.03,0.7]
[1758091264677,0.06,236.06,236.04,0.7]
[1758091264871,0.06,236.06,236.05,33.68]
[1758091266788,0.06,236.06,236.01,0.73]
[1758091266789,4.23639059,236.05,236.01,0.73]
[1758091266987,4.23639059,236.05,236.02,34.34]
[1758091267182,0.06,236.06,236.03,0.7]
[1758091267586,0.06,236.06,236.04,0.7]
[1758091268783,0.06,236.06,236.02,35.67759122]
[1758091268989,0.06,236.06,236.05,0.7]
[1758091270673,0.06,236.06,236.05,4.93639059]
[1758091272098,0.06,236.06,236.05,18.5319846]
[1758091272295,0.06,236.06,236.05,31.25651962]
[1758091272793,0.06,236.06,236.05,31.54084276]
[1758091273800,0.06,236.06,236.05,65.14084276]
[1758091274178,0.06,236.06,236.05,65.64084276]
[1758091275000,0.06,236.06,236.05,53.79851683]
[1758091275196,0.06,236.06,236.05,41.07398181]
[1758091275787,0.06,236.06,236.05,0.5]
[1758091275992,0.06,236.06,236.05,36.13759122]
[1758091276393,0.06,236.06,236.05,2.53759122]
[1758091276606,0.06,236.06,236.05,36.13759122]
[1758091277002,0.06,236.06,236.05,61.61759122]
[1758091277284,0.06,236.06,236.05,62.31759122]
[1758091278104,0.06,236.06,236.05,62.29759122]
[1758091279902,0.06,236.06,236.05,61.5632765]
[1758091280303,0.06,236.06,236.05,28.0032765]
[1758091280636,0.06,236.06,236.05,61.5432765]
[1758091281010,0.06,236.06,236.05,1.3032765]
[1758091281200,0.06,236.06,236.05,60.8432765]
[1758091282085,0.06,236.06,236.05,1.3032765]
[1758091282306,0.06,236.06,236.04,26.0]
[1758091282493,0.06,236.06,236.05,33.52]
[1758091282901,0.06,236.06,236.05,26.0]
[1758091283096,0.72,236.06,236.01,0.03]
[1758091283307,0.66,236.05,236.02,33.54]
[1758091283696,4.23640811,236.05,236.02,33.54]
[1758091283897,0.66,236.04,236.02,33.54]
[1758091284096,4.23640811,236.05,236.02,33.54]
[1758091284509,4.23640811,236.05,236.01,0.03]
[1758091284702,4.89640811,236.05,236.02,33.52]
[1758091284907,0.06,236.06,236.02,33.52]
[1758091285207,0.72,236.06,236.02,33.52]
[1758091285492,4.95622794,236.06,236.02,33.52]
[1758091285909,4.95622794,236.06,236.03,33.52]
[1758091286605,0.66,236.05,236.01,0.03]
[1758091286918,1.3032765,236.04,236.02,33.5]
[1758091287128,4.29622794,236.06,236.05,26.0]
[1758091287129,0.06,236.06,236.05,26.0]
[1758091287298,0.06,236.06,236.05,61.4532765]
[1758091287716,0.06,236.06,236.05,60.8032765]
[1758091288129,0.06,236.06,236.05,27.3032765]
[1758091288321,0.06,236.06,236.05,33.54]
[1758091288623,0.06,236.06,236.05,33.52]
[1758091289913,0.06,236.06,236.05,35.4732765]
[1758091290515,0.06,236.06,236.05,39.70884088]
[1758091290908,0.06,236.06,236.05,35.4732765]
[1758091291109,0.06,236.06,236.05,37.17002511]
[1758091293033,0.06,236.06,236.05,35.86674861]
[1758091293223,0.06,236.06,236.05,34.15]
[1758091293428,0.06,236.06,236.01,1.72689256]
[1758091293642,0.06,236.06,236.05,0.65]
[1758091293820,0.06,236.06,236.05,34.15]
[1758091294024,0.06,236.06,236.05,35.4532765]
[1758091294514,0.06,236.06,236.05,34.8032765]
[1758091294710,0.06,236.06,236.05,1.3032765]
[1758091294919,0.06,236.06,236.05,34.8432765]
[1758091295429,0.06,236.06,236.05,35.4932765]
[1758091296934,0.26,236.09,236.08,26.0]
[1758091297137,0.26,236.09,236.08,60.8232765]
[1758091297336,0.26,236.09,236.08,67.01240525]
[1758091297527,0.26,236.09,236.08,67.03240525]
[1758091298740,0.26,236.09,236.08,64.42585225]
[1758091298914,0.26,236.09,236.08,65.72912875]
[1758091299112,0.26,236.09,236.08,68.72893796]
[1758091299326,0.26,236.09,236.08,3.64980921]
[1758091299621,0.26,236.09,236.08,35.4732765]
[1758091299940,0.06,236.11,236.1,26.0]
[1758091300140,0.06,236.11,236.1,60.8032765]
[1758091300332,0.06,236.11,236.1,35.5332765]
[1758091303439,0.75,236.11,236.1,33.54]
[1758091303825,0.75,236.11,236.1,34.8432765]
[1758091304323,0.06,236.11,236.1,34.8432765]
[1758091305440,0.06,236.11,236.1,33.54]
[1758091305623,0.06,236.11,236.1,34.8432765]
[1758091306529,0.06,236.11,236.1,33.54]
[1758091306724,0.75,236.11,236.1,34.8832765]
[1758091306919,0.06,236.11,236.1,34.8632765]
[1758091309666,0.06,236.11,236.06,9.12094748]
[1758091309953,0.06,236.11,236.04,49.597337]
[1758091309954,0.69,236.1,236.09,1.3032765]
[1758091310160,0.69,236.1,236.09,34.8432765]
[1758091310939,0.06,236.11,236.09,34.8432765]
[1758091311146,0.75,236.11,236.09,34.8432765]
[1758091312631,0.75,236.11,236.1,33.52]
[1758091313142,4.98537709,236.11,236.06,1.3032765]
[1758091313343,0.69,236.1,236.07,33.5]
[1758091314143,0.75,236.1,236.07,33.5]
[1758091315853,0.75,236.1,236.07,34.8032765]
[1758091319255,0.06,236.1,236.09,1.3032765]
[1758091319461,0.06,236.1,236.09,35.4332765]
[1758091320952,0.06,236.1,236.09,35.3932765]
[1758091321367,0.06,236.1,236.09,39.62894933]
[1758091323774,0.06,236.1,236.09,38.32567283]
[1758091323972,0.06,236.1,236.09,39.62894933]
[1758091324470,0.06,236.1,236.09,35.3732765]
[1758091324878,0.06,236.1,236.06,0.67]
[1758091325052,0.06,236.1,236.09,1.3032765]
[1758091325582,0.06,236.1,236.09,35.3732765]
[1758091326451,0.06,236.1,236.09,39.60894933]
[1758091327070,0.06,236.1,236.09,38.91894933]
[1758091327368,0.06,236.1,236.09,39.58894933]
[1758091327976,0.06,236.1,236.09,35.3532765]
[1758091328179,0.06,236.1,236.09,1.9732765]
[1758091328354,0.06,236.1,236.09,35.3532765]
[1758091329352,0.06,236.1,236.09,39.58894933]
[1758091333392,0.06,236.1,236.09,53.12454334]
[1758091334795,0.06,236.1,236.09,53.40886648]
[1758091335885,0.06,236.1,236.09,20.08886648]
[1758091336091,0.06,236.1,236.09,53.40886648]
[1758091336690,0.06,236.13,236.12,39.59559401]
[1758091337003,0.06,236.13,236.12,74.19887051]
[1758091337209,0.06,236.13,236.12,74.86887051]
[1758091337885,0.06,236.13,236.12,79.10400518]
[1758091339113,0.06,236.13,236.12,82.47615554]
[1758091339908,0.68,236.23,236.16,26.0]
[1758091340101,0.2,236.29,236.18,14.89887051]
[1758091340102,0.68,236.28,236.18,14.89887051]
[1758091340413,0.68,236.28,236.18,48.29887051]
[1758091340616,0.68,236.28,236.18,48.96887051]
[1758091340813,4.43209498,236.29,236.18,48.96887051]
[1758091341111,0.68,236.27,236.18,48.96887051]
[1758091341320,0.68,236.27,236.18,53.18292927]
[1758091341889,0.68,236.27,236.18,53.91294196]
[1758091342505,0.68,236.27,236.18,55.94623115]
[1758091343100,0.2,236.29,236.26,26.0]
[1758091343303,0.2,236.29,236.28,28.03328919]
[1758091343503,0.2,236.29,236.28,54.10843347]
[1758091343698,0.2,236.29,236.28,28.77843347]
[1758091343919,0.68,236.38,236.37,2.03328919]
[1758091344090,0.68,236.38,236.37,35.43328919]
[1758091344295,0.68,236.38,236.32,26.0]
[1758091344497,0.2,236.39,236.37,2.03328919]
[1758091344498,4.43033616,236.39,236.37,2.03328919]
[1758091344689,4.43033616,236.39,236.38,33.4]
[1758091344890,0.2,236.39,236.38,33.4]
[1758091345107,0.88,236.39,236.38,33.4]
[1758091346189,0.88,236.39,236.38,2.03328919]
[1758091346389,5.11036807,236.39,236.38,33.38]
[1758091347021,0.88,236.39,236.38,33.38]
[1758091347312,0.2,236.39,236.38,35.41328919]
[1758091347708,0.86,236.39,236.38,35.41328919]
[1758091348101,0.2,236.39,236.38,35.41328919]
[1758091351899,0.2,236.39,236.38,33.38]
[1758091352228,0.26,236.39,236.38,35.33328919]
[1758091352401,0.92,236.39,236.38,33.3]
[1758091352906,5.15032701,236.39,236.38,33.3]
[1758091353316,5.15032701,236.39,236.25,3.37093795]
[1758091353317,7.1836162,236.39,236.25,3.37093795]
[1758091353524,2.03328919,236.37,236.28,12.47955027]
[1758091353727,4.49032701,236.39,236.27,2.03328919]
[1758091353728,2.03328919,236.33,236.27,2.03328919]
[1758091353915,0.66,236.34,236.29,33.3]
[1758091354325,2.69328919,236.34,236.29,33.3]
[1758091354716,0.66,236.34,236.29,33.3]
[1758091354917,2.03328919,236.32,236.27,26.0]
[1758091355122,0.66,236.31,236.28,33.28]
[1758091355421,0.26,236.39,236.3,2.03328919]
[1758091355422,0.92,236.39,236.3,2.03328919]
[1758091355622,7.18360948,236.39,236.33,2.03328919]
[1758091355832,2.69328919,236.38,236.34,33.3]
[1758091356023,0.66,236.37,236.35,33.3]
[1758091356226,0.66,236.37,236.36,2.03328919]
[1758091357222,4.89065532,236.37,236.36,35.33328919]
[1758091357621,4.89065532,236.37,236.36,2.03328919]
[1758091357820,4.23065532,236.37,236.36,35.31328919]
[1758091358528,4.49033153,236.39,236.36,35.31328919]
[1758091358836,34.74079102,236.47,236.36,35.31328919]
[1758091358837,0.66,236.43,236.42,0.71051973]
[1758091359130,0.66,236.46,236.42,36.02380892]
[1758091359432,0.66,236.46,236.45,2.03328919]
[1758091359612,0.66,236.46,236.45,35.37328919]
[1758091359821,0.2,236.49,236.45,35.37328919]
[1758091359822,0.66,236.48,236.45,35.37328919]
[1758091360015,0.66,236.47,236.45,35.37328919]
[1758091360729,4.22904508,236.46,236.45,35.37328919]
[1758091361237,4.88904508,236.46,236.45,35.37328919]
[1758091362139,4.22904508,236.46,236.45,35.37328919]
[1758091362314,4.08178579,236.46,236.45,35.37328919]
[1758091362515,0.2,236.49,236.45,34.04]
[1758091362728,0.2,236.49,236.48,2.03328919]
[1758091362920,0.2,236.49,236.48,35.41328919]
[1758091363924,0.2,236.49,236.48,36.13328919]
[1758091364712,0.2,236.49,236.48,2.03328919]
[1758091364921,0.2,236.49,236.48,35.39328919]
[1758091365319,0.2,236.49,236.48,33.36]
[1758091365936,0.2,236.49,236.44,3.44428847]
[1758091366139,0.2,236.49,236.46,2.03328919]
[1758091366528,0.2,236.49,236.47,33.34]
[1758091367045,0.2,236.49,236.34,2.03328919]
[1758091367046,0.66,236.48,236.42,2.75328919]
[1758091367250,0.66,236.48,236.43,33.32]
[1758091367420,0.66,236.48,236.44,33.34]
[1758091367818,4.42853417,236.49,236.42,0.72]
[1758091368050,0.66,236.47,236.39,0.72]
[1758091368227,2.69328919,236.47,236.4,33.32]
[1758091368552,0.66,236.46,236.4,33.32]
[1758091368752,2.03328919,236.43,236.4,33.32]
[1758091368948,6.26287498,236.43,236.41,33.32]
[1758091369653,4.22958579,236.43,236.41,33.32]
[1758091370038,2.03328919,236.45,236.41,33.32]
[1758091370039,4.22933816,236.45,236.41,33.32]
[1758091370640,2.69328919,236.46,236.41,33.32]
[1758091370841,6.92238321,236.46,236.41,33.32]
[1758091371421,0.2,236.49,236.41,33.32]
[1758091371623,0.2,236.49,236.48,2.03328919]
[1758091371925,0.26,236.49,236.48,35.33328919]
[1758091372144,0.26,236.49,236.48,36.05328919]
[1758091373274,0.26,236.49,236.48,47.61559401]
[1758091373451,0.26,236.49,236.48,49.6488832]
[1758091373845,0.26,236.49,236.48,16.3488832]
[1758091374038,0.26,236.49,236.48,49.6888832]
[1758091374859,0.2,236.59,236.52,39.59559401]
[1758091375066,0.2,236.59,236.58,2.03328919]
[1758091375243,0.2,236.59,236.58,33.34]
[1758091375443,0.2,236.59,236.57,2.03328919]
[1758091375643,0.2,236.59,236.57,2.71328919]
[1758091375844,0.2,236.59,236.58,33.38]
[1758091376152,4.42683715,236.59,236.58,33.38]
[1758091376349,0.9,236.59,236.58,33.38]
[1758091376567,2.93328919,236.59,236.58,33.38]
[1758091378050,2.93328919,236.59,236.52,0.68]
[1758091378051,4.22689999,236.58,236.52,0.68]
[1758091378253,2.03328919,236.56,236.53,33.38]
[1758091378450,2.03328919,236.56,236.53,34.06]
[1758091378649,2.03328919,236.57,236.53,34.06]
[1758091378955,2.03328919,236.57,236.54,33.36]
[1758091379271,2.03328919,236.57,236.55,33.36]
[1758091379460,2.03328919,236.57,236.56,33.36]
[1758091380564,4.22725735,236.56,236.51,26.0]
[1758091380770,4.22725735,236.56,236.52,33.36]
[1758091380771,2.03328919,236.55,236.52,33.36]
[1758091381566,2.03328919,236.54,236.52,33.36]
[1758091382604,2.03328919,236.53,236.5,0.68]
[1758091382899,2.03328919,236.51,236.47,0.68]
[1758091383069,2.03328919,236.5,236.48,34.0]
[1758091383269,2.03328919,236.5,236.49,33.32]
[1758091383888,4.2283298,236.5,236.49,33.32]
[1758091384186,4.2283298,236.5,236.49,34.0]
[1758091384381,4.2283298,236.5,236.49,0.68]
[1758091384558,4.2283298,236.5,236.49,34.0]
[1758091386186,6.96161899,236.5,236.45,0.68]
[1758091386489,10.57022906,236.52,236.46,34.0]
[1758091386490,4.22803983,236.52,236.46,34.0]
[1758091386664,4.22803983,236.52,236.47,0.68]
[1758091386864,6.26132902,236.52,236.48,0.68]
[1758091387088,2.03328919,236.51,236.48,0.68]
[1758091388189,2.03328919,236.5,236.48,0.68]
[1758091389068,2.03328919,236.49,236.45,0.68]
[1758091389388,2.03328919,236.47,236.46,33.26]
[1758091389689,2.03328919,236.47,236.46,33.28]
[1758091389897,2.73328919,236.47,236.46,33.28]
[1758091390095,2.03328919,236.47,236.46,33.28]
[1758091390573,2.03328919,236.48,236.46,33.28]
[1758091390994,4.2285086,236.49,236.46,33.28]
[1758091391173,6.26179779,236.49,236.46,33.96]
[1758091391602,14.79637483,236.55,236.47,0.68]
[1758091391900,4.22743606,236.55,236.49,2.03328919]
[1758091392069,4.22743606,236.55,236.5,35.97328919]
[1758091392266,4.22707866,236.57,236.5,35.29328919]
[1758091392482,4.22707866,236.57,236.51,0.68]
[1758091392975,4.22707866,236.57,236.51,2.71328919]
[1758091393183,4.42687585,236.59,236.53,2.03328919]
[1758091393497,4.42687585,236.59,236.54,0.68]
[1758091393696,6.46016504,236.59,236.55,33.28]
[1758091393876,6.46016504,236.59,236.55,33.96]
[1758091394473,4.42687585,236.59,236.55,0.68]
[1758091394797,2.03328919,236.58,236.52,0.68]
[1758091394993,4.42687585,236.59,236.52,2.71328919]
[1758091395175,6.46016504,236.59,236.52,2.03328919]
[1758091395387,6.46016504,236.59,236.53,33.94]
[1758091396985,4.42687585,236.59,236.53,33.26]
[1758091397197,6.46016504,236.59,236.54,0.68]
[1758091397395,6.46016504,236.59,236.55,0.68]
[1758091397777,6.46016504,236.59,236.53,33.94]
[1758091398895,4.42687585,236.59,236.53,33.94]
[1758091399105,0.2,236.59,236.56,2.03328919]
[1758091399409,0.2,236.59,236.57,2.71328919]
[1758091399587,0.2,236.59,236.58,33.24]
[1758091399776,0.2,236.59,236.58,33.92]
[1758091400109,0.2,236.59,236.58,33.24]
[1758091400282,0.2,236.59,236.58,33.92]
[1758091401173,0.2,236.59,236.58,35.95328919]
[1758091401605,0.2,236.59,236.58,33.92]
[1758091401777,0.2,236.59,236.58,35.21765097]
[1758091401977,0.2,236.59,236.58,33.92]
[1758091402986,0.2,236.59,236.58,0.68]
[1758091403183,0.2,236.59,236.58,33.88]
[1758091405900,0.2,236.59,236.58,33.86]
[1758091409304,0.2,236.59,236.58,34.0]
[1758091409506,0.2,236.59,236.58,33.98]
[1758091411703,0.2,236.59,236.58,33.3]
[1758091412005,0.2,236.59,236.58,33.28]
[1758091412587,0.2,236.59,236.58,33.96]
[1758091412911,0.2,236.59,236.58,33.94]
[1758091414904,4.42674981,236.59,236.55,12.60489511]
[1758091415105,4.42674981,236.59,236.56,33.24]
[1758091415307,5.72440078,236.59,236.57,33.28]
[1758091415613,5.72440078,236.59,236.58,33.28]
[1758091415822,4.42674981,236.59,236.58,33.28]
[1758091416412,6.41440078,236.59,236.58,33.26]
[1758091417211,16.98120411,236.59,236.58,33.26]
[1758091418315,16.98120411,236.59,236.51,0.68]
[1758091418505,5.52503122,236.56,236.52,33.26]
[1758091418707,5.52503122,236.56,236.52,33.94]
[1758091419519,5.52503122,236.56,236.52,0.68]
[1758091419717,5.52503122,236.56,236.53,33.24]
[1758091419917,5.52472963,236.57,236.53,33.24]
[1758091420222,5.52472963,236.57,236.53,0.68]
[1758091420520,0.69,236.58,236.54,33.22]
[1758091420521,1.98765097,236.58,236.54,33.22]
[1758091420715,4.22693752,236.58,236.55,0.68]
[1758091420913,4.22693752,236.58,236.56,0.68]
[1758091421306,4.22693752,236.58,236.54,33.9]
[1758091421513,4.22693752,236.58,236.55,0.68]
[1758091422518,1.49765097,236.59,236.54,33.22]
[1758091422703,0.2,236.59,236.58,1.29765097]
[1758091422901,0.2,236.59,236.58,35.27765097]
[1758091424520,0.2,236.59,236.58,39.50455096]
[1758091428913,0.2,236.59,236.58,42.81246013]
[1758091429311,0.26,236.59,236.58,42.81246013]
[1758091434611,0.2,236.69,236.61,26.0]
[1758091434815,0.2,236.69,236.67,1.29765097]
[1758091435019,0.2,236.69,236.68,33.18]
[1758091435218,0.89,236.69,236.68,33.18]
[1758091435737,0.2,236.69,236.68,33.18]
[1758091436934,0.2,236.69,236.68,33.16]
[1758091440446,0.2,236.69,236.66,6.22307253]
[1758091440750,0.2,236.69,236.67,33.16]
[1758091441749,0.2,236.69,236.67,35.15765097]
[1758091441948,0.2,236.69,236.67,33.86]
[1758091442537,0.2,236.69,236.67,33.16]
[1758091442951,0.2,236.69,236.67,33.86]
[1758091444059,0.2,236.69,236.67,33.16]
[1758091445155,0.2,236.69,236.67,35.15765097]
[1758091445881,0.2,236.69,236.67,34.45765097]
[1758091446275,0.71,236.68,236.61,26.7]
[1758091446451,1.29765097,236.67,236.62,33.14]
[1758091446648,2.00765097,236.67,236.62,33.84]
[1758091446877,0.71,236.67,236.62,35.13765097]
[1758091448157,0.71,236.67,236.62,33.84]
[1758091448371,4.93537773,236.67,236.62,33.84]
[1758091449173,4.93537773,236.67,236.62,35.13765097]
[1758091450077,6.2330287,236.67,236.62,33.84]
[1758091450658,4.93537773,236.67,236.62,33.84]
[1758091451869,6.2330287,236.67,236.62,33.84]
[1758091452378,4.93560093,236.66,236.62,33.14]
[1758091452550,0.26,236.69,236.65,26.0]
[1758091452755,0.26,236.69,236.68,27.29765097]
[1758091452966,0.26,236.69,236.68,61.13765097]
[1758091454155,0.26,236.69,236.68,59.84]
[1758091454463,0.26,236.69,236.68,0.7]
[1758091454654,0.26,236.69,236.68,35.13765097]
[1758091456478,0.26,236.69,236.68,1.99765097]
[1758091456662,0.26,236.69,236.68,35.13765097]
[1758091458259,0.26,236.69,236.68,33.84]
[1758091458459,0.26,236.69,236.68,35.13765097]
[1758091459876,0.26,236.69,236.68,48.73324498]
[1758091460790,0.26,236.69,236.68,35.15765097]
[1758091461291,0.26,236.69,236.68,33.86]
[1758091461488,0.26,236.69,236.68,34.45765097]
[1758091461670,0.26,236.69,236.68,35.15765097]
[1758091461861,0.26,236.69,236.68,33.86]
[1758091462060,0.26,236.69,236.68,35.15765097]
[1758091463881,0.26,236.69,236.68,35.88506266]
[1758091464476,0.26,236.69,236.68,49.48065667]
[1758091464666,0.26,236.69,236.68,49.98065667]
[1758091465391,0.26,236.69,236.68,47.93559401]
[1758091465559,0.26,236.69,236.68,16.82065667]
[1758091465765,0.26,236.69,236.68,49.96065667]
[1758091466101,0.2,236.79,236.72,39.59559401]
[1758091466391,0.2,236.79,236.76,26.0]
[1758091466587,0.2,236.79,236.77,33.14]
[1758091467408,0.2,236.79,236.77,37.36350784]
[1758091468286,0.2,236.79,236.77,50.06952616]
[1758091468508,0.2,236.79,236.77,16.92952616]
[1758091469005,0.2,236.79,236.78,33.14]
[1758091470086,0.9,236.79,236.77,12.70601832]
[1758091470289,0.9,236.79,236.78,33.14]
[1758091470495,5.12316613,236.79,236.76,26.0]
[1758091470705,0.7,236.78,236.72,30.2243574]
[1758091470895,0.7,236.78,236.76,26.0]
[1758091471206,0.7,236.78,236.77,33.14]
[1758091471509,6.44822879,236.79,236.77,33.14]
[1758091471803,6.44822879,236.79,236.74,26.0]
[1758091472006,0.7,236.78,236.75,33.12]
[1758091472312,0.7,236.77,236.75,33.12]
[1758091472502,4.42316613,236.79,236.71,4.9245719]
[1758091472503,2.02506266,236.78,236.71,4.9245719]
[1758091472807,2.02506266,236.75,236.72,33.12]
[1758091473014,2.02506266,236.73,236.71,12.99076472]
[1758091473201,2.02506266,236.74,236.72,33.12]
[1758091473414,4.22421262,236.74,236.72,33.12]
[1758091473583,2.02506266,236.73,236.72,33.12]
[1758091473984,2.72506266,236.73,236.72,33.12]
[1758091475923,4.22440013,236.72,236.66,2.02506266]
[1758091476110,6.24946279,236.72,236.67,33.12]
[1758091476300,2.02506266,236.69,236.68,33.12]
[1758091476494,2.72506266,236.69,236.68,33.12]
[1758091476900,2.72506266,236.69,236.62,4.92617996]
[1758091477098,0.7,236.69,236.63,33.82]
[1758091477298,2.72506266,236.69,236.63,33.82]
[1758091478210,6.25017673,236.68,236.63,0.7]
[1758091478511,0.7,236.67,236.64,33.12]
[1758091478717,0.7,236.67,236.64,46.02834887]
[1758091478922,0.7,236.67,236.65,33.14]
[1758091479214,6.25017673,236.68,236.65,33.14]
[1758091479420,6.95017673,236.68,236.65,33.14]
[1758091479594,0.7,236.67,236.63,12.65391328]
[1758091479793,0.7,236.67,236.64,33.14]
[1758091480018,4.92536451,236.67,236.64,33.14]
[1758091480200,6.25042717,236.67,236.64,33.14]
[1758091480401,0.7,236.66,236.65,33.14]
[1758091480608,4.22536451,236.67,236.65,33.14]
[1758091480807,0.7,236.72,236.66,2.72506266]
[1758091481097,2.72506266,236.75,236.67,0.7]
[1758091481714,4.22404325,236.74,236.66,2.02506266]
[1758091481891,2.02506266,236.73,236.66,2.02506266]
[1758091482094,2.72506266,236.73,236.66,2.02506266]
[1758091482294,2.72506266,236.73,236.65,33.84]
[1758091482295,0.7,236.72,236.65,0.7]
[1758091482490,2.02506266,236.71,236.66,33.14]
[1758091482709,2.72506266,236.71,236.66,33.84]
[1758091483194,4.22475707,236.7,236.66,33.84]
[1758091486622,0.7,236.71,236.66,33.84]
[1758091486802,2.02506266,236.7,236.67,0.7]
[1758091487119,2.02506266,236.71,236.66,33.14]
[1758091487309,2.02506266,236.71,236.67,0.7]
[1758091487620,4.92434338,236.73,236.67,0.7]
[1758091487808,2.02506266,236.72,236.67,0.7]
[1758091488013,2.72506266,236.72,236.67,0.7]
[1758091488224,4.22457859,236.71,236.66,33.17]
[1758091488393,2.02506266,236.7,236.66,33.87]
[1758091488596,4.92457859,236.71,236.66,33.87]
[1758091488798,2.02506266,236.7,236.66,33.87]
[1758091489434,6.2498859,236.7,236.67,0.7]
[1758091489631,0.2,236.79,236.67,0.7]
[1758091489632,0.2,236.79,236.74,2.206]
[1758091489845,0.2,236.79,236.75,33.94]
[1758091490002,0.2,236.79,236.76,0.7]
[1758091490304,0.2,236.79,236.75,33.24]
[1758091490507,0.2,236.79,236.76,0.7]
[1758091490821,0.2,236.79,236.77,0.7]
[1758091491226,0.2,236.79,236.74,2.206]
[1758091491515,0.2,236.79,236.77,0.7]
[1758091492328,4.42319466,236.79,236.75,33.74]
[1758091492502,6.44825732,236.79,236.74,2.206]
[1758091492709,2.02506266,236.77,236.75,33.8]
[1758091493400,4.22368643,236.76,236.75,33.8]
[1758091493600,2.02506266,236.77,236.75,33.8]
[1758091494011,6.94866293,236.77,236.75,33.8]
[1758091494603,4.92360027,236.77,236.75,33.8]
[1758091494802,2.02506266,236.76,236.75,33.8]
[1758091495136,4.92360027,236.77,236.75,33.8]
[1758091495341,2.02506266,236.76,236.75,33.8]
[1758091496540,2.72506266,236.76,236.75,33.8]
[1758091496707,2.02506266,236.76,236.75,33.8]
[1758091497333,2.72506266,236.76,236.75,33.8]
[1758091497817,4.22386483,236.75,236.72,33.74]
[1758091498024,2.02506266,236.73,236.72,33.74]
[1758091498716,4.22386483,236.75,236.72,33.74]
[1758091499018,2.02506266,236.74,236.72,33.74]
[1758091499338,2.02506266,236.74,236.72,34.4]
[1758091499947,4.22388532,236.75,236.73,0.66]
[1758091500112,2.02506266,236.74,236.73,0.66]
[1758091500317,2.02506266,236.74,236.72,33.74]
[1758091500512,0.7,236.73,236.67,0.66]
[1758091500714,2.02506266,236.69,236.68,33.72]
[1758091501116,15.48354741,236.75,236.68,34.38]
[1758091501345,2.02506266,236.7,236.68,34.38]
[1758091501544,0.7,236.73,236.68,34.38]
[1758091501742,2.02506266,236.7,236.68,34.38]
[1758091501915,6.24982059,236.7,236.68,34.38]
[1758091502238,4.22475793,236.7,236.68,34.38]
[1758091502425,6.24982059,236.7,236.68,34.38]
[1758091502832,4.22440013,236.72,236.68,34.38]
[1758091503036,2.02506266,236.7,236.68,34.38]
[1758091503225,4.22440013,236.72,236.68,34.38]
[1758091503431,0.7,236.73,236.68,34.38]
[1758091503432,2.02506266,236.7,236.68,34.38]
[1758091503867,4.22424813,236.73,236.68,33.72]
[1758091504156,131.7,236.78,236.68,33.72]
[1758091504157,4.22350804,236.77,236.69,0.66]
[1758091504324,2.02506266,236.75,236.69,0.66]